fUST/lending_fUST_20250523
["ID","MTS","AMOUNT","RATE_DAILY","PERIOD"]
[362083756,1747983052301,-430.0,0.00016712,2]
[362083757,1747983052311,-741.73,0.00016712,2]
[362083758,1747983052320,-167.96451252,0.00016712,2]
[362083759,1747983052330,-380.23103797,0.00016712,2]
[362083760,1747983052340,-321.47189589,0.00016712,2]
[362083761,1747983052350,-430.0,0.00016712,2]
[362083762,1747983052359,-430.0,0.00016712,2]
[362083763,1747983052369,-902.22,0.00016712,2]
[362083764,1747983052378,-430.0,0.00016712,2]
[362083765,1747983052388,-440.0,0.00016712,2]
[362083766,1747983052398,-430.0,0.00016712,2]
[362083767,1747983052408,-430.0,0.00016712,2]
[362083768,1747983052417,-430.0,0.00016712,2]
[362083769,1747983052426,-430.0,0.00016712,2]
[362083770,1747983052436,-771.28,0.00016712,2]
[362083771,1747983052445,-430.0,0.00016712,2]
[362083772,1747983052455,-451.42534179,0.00016712,2]
[362083773,1747983052465,-430.0,0.00016712,2]
[362083774,1747983052475,-430.0,0.00016712,2]
[362083775,1747983052485,-430.0,0.00016712,2]
[362083776,1747983052494,-430.0,0.00016712,2]
[362083777,1747983052503,-711.34,0.00016712,2]
[362083778,1747983052513,-430.0,0.00016712,2]
[362083779,1747983052522,-873.36,0.00016712,2]
[362083780,1747983052532,-430.0,0.00016712,2]
[362083781,1747983052542,-430.0,0.00016712,2]
[362083782,1747983052551,-430.0,0.00016712,2]
[362083783,1747983052560,-164.09356842,0.00016712,2]
[362083784,1747983052570,-430.0,0.00016712,2]
[362083785,1747983052579,-430.0,0.00016712,2]
[362083786,1747983052588,-2373.27,0.00016712,2]
[362083787,1747983052598,-430.0,0.00016712,2]
[362083788,1747983052607,-629.06,0.00016712,2]
[362083789,1747983052617,-430.0,0.00016712,2]
[362083790,1747983052626,-430.0,0.00016712,2]
[362083791,1747983052636,-430.0,0.00016712,2]
[362083792,1747983052645,-430.0,0.00016712,2]
[362083793,1747983052655,-430.0,0.00016712,2]
[362083794,1747983052664,-812.97,0.00016712,2]
[362083795,1747983052674,-430.0,0.00016712,2]
[362083796,1747983052683,-305.89976859,0.00016712,2]
[362083797,1747983052693,-430.52,0.00016712,2]
[362083798,1747983052702,-415.11524398,0.00016712,2]
[362083799,1747983052712,-710.91,0.00016712,2]
[362083800,1747983052721,-430.0,0.00016712,2]
[362083801,1747983052731,-430.0,0.00016712,2]
[362083802,1747983052740,-430.0,0.00016712,2]
[362083803,1747983052750,-2329.09,0.00016712,2]
[362083804,1747983052760,-430.0,0.00016712,2]
[362083805,1747983052769,-430.0,0.00016712,2]
[362083806,1747983052780,-451.57802046,0.00016712,2]
[362083807,1747983052790,-432.42692126,0.00016712,2]
[362083808,1747983052800,-430.0,0.00016712,2]
[362083809,1747983052810,-530.67,0.00016712,2]
[362083810,1747983052819,-430.0,0.00016712,2]
[362083811,1747983052828,-351.82035834,0.00016712,2]
[362083812,1747983052838,-430.0,0.00016712,2]
[362083813,1747983052847,-430.0,0.00016712,2]
[362083814,1747983052856,-430.0,0.00016712,2]
[362083815,1747983052866,-430.0,0.00016712,2]
[362083816,1747983052875,-546.11063442,0.00016712,2]
[362083817,1747983052885,-342.29250877,0.00016712,2]
[362083818,1747983052895,-430.0,0.00016712,2]
[362083819,1747983052905,-714.16,0.00016712,2]
[362083820,1747983052915,-430.0,0.00016712,2]
[362083821,1747983052923,-430.0,0.00016712,2]
[362083822,1747983052933,-405.2516082,0.00016712,2]
[362083823,1747983052943,-430.0,0.00016712,2]
[362083824,1747983052953,-955.94,0.00016712,2]
[362083825,1747983052963,-1900.21,0.00016712,2]
[362083826,1747983052972,-430.0,0.00016712,2]
[362083827,1747983052982,-152.0,0.00016877,2]
[362083828,1747983052992,-462.2398733,0.00016986,2]
[362083829,1747983053001,-430.0,0.00016986,2]
[362083830,1747983053010,-336.70935938,0.00016986,2]
[362083831,1747983053020,-430.0,0.00016986,2]
[362083832,1747983053031,-430.0,0.00016986,2]
[362083833,1747983053040,-430.0,0.00016986,2]
[362083834,1747983053050,-430.0,0.00016986,2]
[362083835,1747983053060,-440.0,0.00016986,2]
[362083836,1747983053069,-470.0,0.00016986,2]
[362083837,1747983053079,-430.0,0.00016986,2]
[362083838,1747983053089,-430.0,0.00016986,2]
[362083839,1747983053099,-430.0,0.00016986,2]
[362083840,1747983053109,-430.0,0.00016986,2]
[362083841,1747983053119,-430.0,0.00016986,2]
[362083842,1747983053128,-430.0,0.00016986,2]
[362083843,1747983053138,-470.0,0.00016986,2]
[362083844,1747983053148,-430.0,0.00016986,2]
[362083845,1747983053157,-430.0,0.00016986,2]
[362083846,1747983053167,-430.0,0.00016986,2]
[362083847,1747983053176,-430.0,0.00016986,2]
[362083848,1747983053186,-430.0,0.00016986,2]
[362083849,1747983053196,-430.0,0.00016986,2]
[362083850,1747983053205,-470.0,0.00016986,2]
[362083851,1747983053216,-430.0,0.00016986,2]
[362083852,1747983053229,-430.0,0.00016986,2]
[362083853,1747983053238,-441.59,0.00016986,2]
[362083854,1747983053247,-430.0,0.00016986,2]
[362083855,1747983053258,-430.0,0.00016986,2]
[362083856,1747983053267,-430.0,0.00016986,2]
[362083857,1747983053278,-430.0,0.00016986,2]
[362083858,1747983053287,-430.0,0.00016986,2]
[362083859,1747983053297,-430.0,0.00016986,2]
[362083860,1747983053307,-430.0,0.00016986,2]
[362083861,1747983053318,-430.0,0.00016986,2]
[362083862,1747983053327,-580.53,0.00016986,2]
[362083863,1747983053337,-430.0,0.00016986,2]
[362083864,1747983053348,-430.0,0.00016986,2]
[362083865,1747983053358,-430.0,0.00016986,2]
[362083866,1747983053368,-430.0,0.00016986,2]
[362083867,1747983053378,-430.0,0.00016986,2]
[362083868,1747983053387,-741.73,0.00016986,2]
[362083869,1747983053397,-430.0,0.00016986,2]
[362083870,1747983053406,-430.0,0.00016986,2]
[362083871,1747983053417,-902.22,0.00016986,2]
[362083872,1747983053427,-430.0,0.00016986,2]
[362083873,1747983053437,-430.0,0.00016986,2]
[362083874,1747983053446,-430.0,0.00016986,2]
[362083875,1747983053457,-430.0,0.00016986,2]
[362083876,1747983053467,-771.28,0.00016986,2]
[362083877,1747983053477,-430.0,0.00016986,2]
[362083878,1747983053486,-430.0,0.00016986,2]
[362083879,1747983053496,-430.0,0.00016986,2]
[362083880,1747983053506,-430.0,0.00016986,2]
[362083881,1747983053515,-711.34,0.00016986,2]
[362083882,1747983053526,-430.0,0.00016986,2]
[362083883,1747983053535,-873.36,0.00016986,2]
[362083884,1747983053545,-430.0,0.00016986,2]
[362083885,1747983053554,-430.0,0.00016986,2]
[362083886,1747983053564,-572.39129115,0.00016986,2]
[362083887,1747983053574,-430.0,0.00016986,2]
[362083888,1747983053583,-430.0,0.00016986,2]
[362083889,1747983053593,-2373.27,0.00016986,2]
[362083890,1747983053602,-629.06,0.00016986,2]
[362083891,1747983053612,-430.0,0.00016986,2]
[362083892,1747983053621,-430.0,0.00016986,2]
[362083893,1747983053631,-430.0,0.00016986,2]
[362083894,1747983053640,-430.0,0.00016986,2]
[362083895,1747983053649,-812.97,0.00016986,2]
[362083896,1747983053659,-430.0,0.00016986,2]
[362083897,1747983053669,-430.52,0.00016986,2]
[362083898,1747983053679,-710.91,0.00016986,2]
[362083899,1747983053688,-430.0,0.00016986,2]
[362083900,1747983053698,-432.25056912,0.00016986,2]
[362083901,1747983053707,-2329.09,0.00016986,2]
[362083902,1747983053716,-430.0,0.00016986,2]
[362083903,1747983053726,-430.0,0.00016986,2]
[362083904,1747983053735,-530.67,0.00016986,2]
[362083905,1747983053744,-430.0,0.00016986,2]
[362083906,1747983053754,-430.0,0.00016986,2]
[362083907,1747983053763,-430.0,0.00016986,2]
[362083908,1747983053773,-440.37181364,0.00016986,2]
[362083909,1747983053784,-714.16,0.00016986,2]
[362083910,1747983053794,-430.0,0.00016986,2]
[362083911,1747983053803,-430.0,0.00016986,2]
[362083912,1747983053813,-550.42313834,0.00016986,2]
[362083913,1747983053822,-955.94,0.00016986,2]
[362083914,1747983053832,-1900.21,0.00016986,2]
[362083915,1747983053843,-430.0,0.00016986,2]
[362083916,1747983053853,-424.98840971,0.00017084,2]
[362083917,1747983053863,-500.0,0.00017168,2]
[362083918,1747983053872,-524.42590895,0.00017168,2]
[362083919,1747983053882,-430.0,0.0001726,2]
[362083920,1747983053891,-430.0,0.0001726,2]
[362083921,1747983053901,-430.0,0.0001726,2]
[362083922,1747983053911,-430.0,0.0001726,2]
[362083923,1747983053920,-470.0,0.0001726,2]
[362083924,1747983053930,-430.0,0.0001726,2]
[362083925,1747983053940,-430.0,0.0001726,2]
[362083926,1747983053950,-430.0,0.0001726,2]
[362083927,1747983053960,-430.0,0.0001726,2]
[362083928,1747983053970,-430.0,0.0001726,2]
[362083929,1747983053979,-173.39598593,0.0001726,2]
[362083930,1747983053988,-430.0,0.0001726,2]
[362083931,1747983053998,-430.0,0.0001726,2]
[362083932,1747983054008,-430.0,0.0001726,2]
[362083933,1747983054018,-430.0,0.0001726,2]
[362083934,1747983054028,-441.59,0.0001726,2]
[362083935,1747983054037,-505.29735372,0.0001726,2]
[362083936,1747983054047,-430.0,0.0001726,2]
[362083937,1747983054056,-430.0,0.0001726,2]
[362083938,1747983054065,-430.0,0.0001726,2]
[362083939,1747983054076,-430.0,0.0001726,2]
[362083940,1747983054086,-430.0,0.0001726,2]
[362083941,1747983054095,-430.0,0.0001726,2]
[362083942,1747983054106,-430.0,0.0001726,2]
[362083943,1747983054116,-580.53,0.0001726,2]
[362083944,1747983054126,-430.0,0.0001726,2]
[362083945,1747983054136,-430.0,0.0001726,2]
[362083946,1747983054146,-430.0,0.0001726,2]
[362083947,1747983054156,-430.0,0.0001726,2]
[362083948,1747983054166,-430.0,0.0001726,2]
[362083949,1747983054176,-741.73,0.0001726,2]
[362083950,1747983054185,-238.04215822,0.0001726,2]
[362083951,1747983054195,-430.0,0.0001726,2]
[362083952,1747983054204,-902.22,0.0001726,2]
[362083953,1747983054215,-450.0,0.0001726,2]
[362083954,1747983054228,-430.0,0.0001726,2]
[362083955,1747983054236,-430.0,0.0001726,2]
[362083956,1747983054246,-430.0,0.0001726,2]
[362083957,1747983054256,-771.28,0.0001726,2]
[362083958,1747983054267,-430.0,0.0001726,2]
[362083959,1747983054277,-373.72472328,0.0001726,2]
[362083960,1747983054286,-430.0,0.0001726,2]
[362083961,1747983054297,-430.0,0.0001726,2]
[362083962,1747983054307,-711.34,0.0001726,2]
[362083963,1747983054317,-430.0,0.0001726,2]
[362083964,1747983054327,-873.36,0.0001726,2]
[362083965,1747983054337,-430.0,0.0001726,2]
[362083966,1747983054346,-430.0,0.0001726,2]
[362083967,1747983054356,-430.0,0.0001726,2]
[362083968,1747983054366,-430.0,0.0001726,2]
[362083969,1747983054376,-2373.27,0.0001726,2]
[362083970,1747983054386,-629.06,0.0001726,2]
[362083971,1747983054396,-430.0,0.0001726,2]
[362083972,1747983054406,-430.0,0.0001726,2]
[362083973,1747983054415,-430.0,0.0001726,2]
[362083974,1747983054424,-812.97,0.0001726,2]
[362083975,1747983054435,-430.0,0.0001726,2]
[362083976,1747983054445,-430.52,0.0001726,2]
[362083977,1747983054575,-710.91,0.0001726,2]
[362083978,1747983054585,-430.0,0.0001726,2]
[362083979,1747983054595,-2329.09,0.0001726,2]
[362083980,1747983054604,-430.0,0.0001726,2]
[362083981,1747983054614,-430.0,0.0001726,2]
[362083982,1747983054625,-530.67,0.0001726,2]
[362083983,1747983054635,-430.0,0.0001726,2]
[362083984,1747983054644,-430.0,0.0001726,2]
[362083985,1747983054654,-430.0,0.0001726,2]
[362083986,1747983054664,-714.16,0.0001726,2]
[362083987,1747983054673,-430.0,0.0001726,2]
[362083988,1747983054682,-430.0,0.0001726,2]
[362083989,1747983054692,-955.94,0.0001726,2]
[362083990,1747983054702,-322.65519947,0.0001726,2]
[362083991,1747983054711,-1900.21,0.0001726,2]
[362083992,1747983054721,-160.67606443,0.00017296,2]
[362083993,1747983054730,-862.80781565,0.00017297,2]
[362083994,1747983054740,-5000.0,0.0001736,2]
[362083995,1747983054749,-5000.0,0.0001736,2]
[362083996,1747983054758,-5000.0,0.0001736,2]
[362083997,1747983054768,-5000.0,0.0001736,2]
[362083998,1747983054778,-5000.0,0.0001736,2]
[362083999,1747983054787,-5000.0,0.0001736,2]
[362084000,1747983054796,-5000.0,0.0001736,2]
[362084001,1747983054806,-4629.18552383,0.0001736,2]
[362084002,1747983054831,-255.54506082,0.0001736,2]
[362084003,1747983055069,362.091344,0.00013699,2]
[362084004,1747983237103,5000.0,0.00016,2]
[362084005,1747983390927,394.021198,0.00015986,2]
[362084006,1747983458507,165.0993128,0.00015986,2]
[362084007,1747983603147,385.46724744,0.00015,2]
[362084008,1747983646744,10142.9897283,0.00015575,2]
[362084009,1747983723883,176.68570973,0.00015799,2]
[362084010,1747983844128,176.68570973,0.00015827,2]
[362084011,1747983849624,163.44345839,0.00015799,2]
[362084012,1747983900348,5000.0,0.00016,2]
[362084013,1747983968463,176.68570973,0.00015827,2]
[362084026,1747984164496,343.986776,0.00013699,2]
[362084030,1747984191365,193.2162069,0.0001563,2]
[362084048,1747984232389,-397.74410102,0.00016338,2]
[362084049,1747984232399,-517.68468939,0.00016338,2]
[362084050,1747984232410,-300.0,0.00016435,2]
[362084051,1747984232419,-300.0,0.00016435,2]
[362084052,1747984232430,-300.0,0.00016435,2]
[362084053,1747984232439,-300.0,0.00016435,2]
[362084054,1747984232449,-300.0,0.00016435,2]
[362084055,1747984232459,-300.0,0.00016435,2]
[362084056,1747984232468,-1200.0,0.00016435,2]
[362084057,1747984232478,-3540.69175988,0.00016437,2]
[362084058,1747984232488,-500.0,0.00016437,2]
[362084059,1747984232497,-215.83948708,0.00016437,2]
[362084060,1747984232507,-198.48299927,0.00016437,2]
[362084061,1747984232518,-500.0,0.00016437,2]
[362084062,1747984232527,-500.0,0.00016437,2]
[362084063,1747984232537,-500.0,0.00016437,2]
[362084064,1747984232547,-500.0,0.00016437,2]
[362084065,1747984232556,-318.2283034,0.00016437,2]
[362084066,1747984232566,-500.0,0.00016437,2]
[362084067,1747984232576,-500.0,0.00016437,2]
[362084068,1747984232586,-500.0,0.00016437,2]
[362084069,1747984232597,-500.0,0.00016437,2]
[362084070,1747984232607,-500.0,0.00016437,2]
[362084071,1747984232619,-500.0,0.00016437,2]
[362084072,1747984232629,-500.0,0.00016437,2]
[362084073,1747984232638,-500.0,0.00016437,2]
[362084074,1747984232648,-500.0,0.00016437,2]
[362084075,1747984232659,-500.0,0.00016437,2]
[362084076,1747984232668,-500.0,0.00016437,2]
[362084077,1747984232678,-430.0,0.00016438,2]
[362084078,1747984232689,-430.0,0.00016438,2]
[362084079,1747984232698,-406.90257499,0.00016438,2]
[362084080,1747984232708,-406.12322878,0.00016438,2]
[362084081,1747984232718,-1005.6498079,0.00016438,2]
[362084082,1747984232727,-500.0,0.00016438,2]
[362084083,1747984232737,-432.25868997,0.00016438,2]
[362084084,1747984232747,-401.4543506,0.00016438,2]
[362084085,1747984232758,-430.0,0.00016438,2]
[362084086,1747984232767,-403.88753872,0.00016438,2]
[362084087,1747984232777,-401.95880687,0.00016438,2]
[362084088,1747984232786,-400.4095493,0.00016438,2]
[362084089,1747984232796,-430.0,0.00016438,2]
[362084090,1747984232806,-430.0,0.00016438,2]
[362084091,1747984232816,-430.0,0.00016438,2]
[362084092,1747984232825,-430.0,0.00016438,2]
[362084093,1747984232835,-430.0,0.00016438,2]
[362084094,1747984232845,-269.06918673,0.00016438,2]
[362084095,1747984232855,-342.41912347,0.00016438,2]
[362084096,1747984232865,-354.8825413,0.00016438,2]
[362084097,1747984232874,-430.0,0.00016438,2]
[362084098,1747984232883,-430.0,0.00016438,2]
[362084099,1747984232893,-357.39627465,0.00016438,2]
[362084100,1747984232904,-500.0,0.00016438,2]
[362084101,1747984232914,-430.0,0.00016438,2]
[362084102,1747984232924,-430.0,0.00016438,2]
[362084103,1747984232934,-430.0,0.00016438,2]
[362084104,1747984232945,-526.60601578,0.00016438,2]
[362084105,1747984232954,-430.0,0.00016438,2]
[362084106,1747984232964,-450.0,0.00016438,2]
[362084107,1747984232973,-363.39676374,0.00016438,2]
[362084108,1747984232982,-476.12422739,0.00016438,2]
[362084109,1747984232992,-430.0,0.00016438,2]
[362084110,1747984233001,-492.86281995,0.00016438,2]
[362084111,1747984233011,-404.1762271,0.00016438,2]
[362084112,1747984233020,-430.0,0.00016438,2]
[362084113,1747984233030,-365.69965358,0.00016438,2]
[362084114,1747984233040,-430.0,0.00016438,2]
[362084115,1747984233049,-362.77026049,0.00016438,2]
[362084116,1747984233059,-376.66971573,0.00016438,2]
[362084117,1747984233069,-559.65546938,0.00016438,2]
[362084118,1747984233079,-353.43323106,0.00016438,2]
[362084119,1747984233088,-430.0,0.00016438,2]
[362084120,1747984233097,-430.0,0.00016438,2]
[362084121,1747984233107,-430.0,0.00016438,2]
[362084122,1747984233117,-430.0,0.00016438,2]
[362084123,1747984233126,-360.52560229,0.00016438,2]
[362084124,1747984233136,-430.0,0.00016438,2]
[362084125,1747984233145,-258.82756976,0.00016438,2]
[362084126,1747984233155,-430.0,0.00016438,2]
[362084127,1747984233165,-430.0,0.00016438,2]
[362084128,1747984233175,-324.01689796,0.00016438,2]
[362084129,1747984233185,-430.0,0.00016438,2]
[362084130,1747984233194,-430.0,0.00016438,2]
[362084131,1747984233203,-430.0,0.00016438,2]
[362084132,1747984233213,-430.0,0.00016438,2]
[362084133,1747984233223,-430.0,0.00016438,2]
[362084134,1747984233232,-430.0,0.00016438,2]
[362084135,1747984233242,-418.97689246,0.00016438,2]
[362084136,1747984233252,-413.27320281,0.00016438,2]
[362084137,1747984233262,-431.22536101,0.00016438,2]
[362084138,1747984233272,-414.74279495,0.00016438,2]
[362084139,1747984233281,-362.78172173,0.00016438,2]
[362084140,1747984233291,-430.0,0.00016438,2]
[362084141,1747984233300,-430.0,0.00016438,2]
[362084142,1747984233310,-156.13981294,0.00016438,2]
[362084143,1747984233319,-437.13472448,0.00016438,2]
[362084144,1747984233329,-439.10851334,0.00016438,2]
[362084145,1747984233339,-415.78167974,0.00016438,2]
[362084146,1747984233348,-416.07999471,0.00016438,2]
[362084147,1747984233358,-430.0,0.00016438,2]
[362084148,1747984233368,-431.59986347,0.00016438,2]
[362084149,1747984233378,-430.0,0.00016438,2]
[362084150,1747984233388,-430.0,0.00016438,2]
[362084151,1747984233399,-438.27415782,0.00016438,2]
[362084152,1747984233408,-431.29853876,0.00016438,2]
[362084153,1747984233419,-345.69339117,0.00016438,2]
[362084154,1747984233429,-433.59515271,0.00016438,2]
[362084155,1747984233439,-430.49980914,0.00016438,2]
[362084156,1747984233449,-430.0,0.00016438,2]
[362084157,1747984233458,-408.43598978,0.00016438,2]
[362084159,1747984233469,-430.0,0.00016438,2]
[362084160,1747984233479,-93.48841328,0.00016438,2]
[362084161,1747984233499,-336.51158672,0.00016438,2]
[362084162,1747984233509,-430.0,0.00016438,2]
[362084163,1747984233519,-364.55035645,0.00016438,2]
[362084164,1747984233529,-430.0,0.00016438,2]
[362084165,1747984233539,-430.0,0.00016438,2]
[362084166,1747984233549,-464.27381962,0.00016438,2]
[362084167,1747984233560,-1036.53709069,0.00016438,2]
[362084168,1747984233570,-470.0,0.00016438,2]
[362084169,1747984233580,-359.91050395,0.00016438,2]
[362084170,1747984233590,-355.06376482,0.00016438,2]
[362084171,1747984233600,-430.0,0.00016438,2]
[362084172,1747984233610,-196.91437152,0.00016438,2]
[362084173,1747984233622,-367.89447767,0.00016438,2]
[362084174,1747984233631,-242.18108008,0.00016438,2]
[362084175,1747984233641,-466.81032424,0.00016438,2]
[362084176,1747984233650,-430.0,0.00016438,2]
[362084177,1747984233661,-470.0,0.00016438,2]
[362084178,1747984233672,-346.11420101,0.00016438,2]
[362084179,1747984233682,-430.0,0.00016438,2]
[362084180,1747984233693,-370.27034835,0.00016438,2]
[362084181,1747984233703,-470.12863455,0.00016438,2]
[362084182,1747984233713,-439.01854562,0.00016438,2]
[362084183,1747984233723,-430.0,0.00016438,2]
[362084184,1747984233734,-351.85658622,0.00016438,2]
[362084185,1747984233744,-430.0,0.00016438,2]
[362084186,1747984233754,-430.0,0.00016438,2]
[362084187,1747984233764,-328.89642057,0.00016438,2]
[362084188,1747984233775,-368.2420006,0.00016438,2]
[362084189,1747984233786,-363.13014817,0.00016438,2]
[362084190,1747984233796,-394.96118866,0.00016438,2]
[362084191,1747984233807,-430.0,0.00016438,2]
[362084192,1747984233816,-430.0,0.00016438,2]
[362084193,1747984233826,-361.59700395,0.00016438,2]
[362084194,1747984233837,-579.40353552,0.00016438,2]
[362084195,1747984233847,-430.0,0.00016438,2]
[362084196,1747984233857,-443.0898,0.00016438,2]
[362084197,1747984233867,-359.31344587,0.00016438,2]
[362084198,1747984233876,-430.0,0.00016438,2]
[362084199,1747984233886,-351.18675489,0.00016438,2]
[362084200,1747984233896,-342.4460731,0.00016438,2]
[362084201,1747984233906,-406.39949878,0.00016438,2]
[362084202,1747984233916,-430.0,0.00016438,2]
[362084203,1747984233925,-221.58339719,0.00016438,2]
[362084204,1747984233935,-430.0,0.00016438,2]
[362084205,1747984233944,-430.0,0.00016438,2]
[362084206,1747984233953,-430.0,0.00016438,2]
[362084207,1747984233963,-400.94895435,0.00016438,2]
[362084208,1747984233972,-430.0,0.00016438,2]
[362084209,1747984233981,-430.0,0.00016438,2]
[362084210,1747984233991,-430.0,0.00016438,2]
[362084211,1747984234000,-470.0,0.00016438,2]
[362084212,1747984234009,-430.0,0.00016438,2]
[362084213,1747984234019,-430.0,0.00016438,2]
[362084214,1747984234029,-183.2415328,0.00016438,2]
[362084215,1747984234038,-491.38910983,0.00016438,2]
[362084216,1747984234049,-528.16194807,0.00016438,2]
[362084217,1747984234058,-354.57549507,0.00016438,2]
[362084218,1747984234068,-430.0,0.00016438,2]
[362084219,1747984234077,-434.82690167,0.00016438,2]
[362084220,1747984234086,-430.0,0.00016438,2]
[362084221,1747984234095,-430.0,0.00016438,2]
[362084222,1747984234104,-403.68683401,0.00016438,2]
[362084223,1747984234114,-199.97183698,0.00016438,2]
[362084224,1747984234123,-430.0,0.00016438,2]
[362084225,1747984234133,-430.0,0.00016438,2]
[362084226,1747984234142,-352.91279948,0.00016438,2]
[362084227,1747984234152,-400.0,0.00016438,2]
[362084228,1747984234161,-467.06120707,0.00016438,2]
[362084229,1747984234171,-542.06559004,0.00016438,2]
[362084230,1747984234180,-430.0,0.00016438,2]
[362084231,1747984234191,-430.0,0.00016438,2]
[362084232,1747984234200,-402.17276894,0.00016438,2]
[362084233,1747984234210,-430.0,0.00016438,2]
[362084234,1747984234219,-514.5951689,0.00016438,2]
[362084235,1747984234229,-430.0,0.00016438,2]
[362084236,1747984234238,-367.17938223,0.00016438,2]
[362084237,1747984234247,-430.0,0.00016438,2]
[362084238,1747984234257,-430.0,0.00016438,2]
[362084239,1747984234266,-428.611439,0.00016438,2]
[362084240,1747984234276,-430.0,0.00016438,2]
[362084241,1747984234285,-355.69369084,0.00016438,2]
[362084242,1747984234294,-353.5541438,0.00016438,2]
[362084243,1747984234304,-430.0,0.00016438,2]
[362084244,1747984234315,-430.0,0.00016438,2]
[362084245,1747984234324,-400.0,0.00016438,2]
[362084246,1747984234333,-430.0,0.00016438,2]
[362084247,1747984234343,-430.0,0.00016438,2]
[362084248,1747984234353,-173.07191868,0.00016438,2]
[362084249,1747984234363,-430.0,0.00016438,2]
[362084250,1747984234374,-460.53249556,0.00016438,2]
[362084251,1747984234384,-430.0,0.00016438,2]
[362084252,1747984234394,-400.0,0.00016438,2]
[362084253,1747984234403,-430.0,0.00016438,2]
[362084254,1747984234412,-407.01349586,0.00016438,2]
[362084255,1747984234422,-367.63152339,0.00016438,2]
[362084256,1747984234432,-430.0,0.00016438,2]
[362084257,1747984234442,-353.17617569,0.00016438,2]
[362084258,1747984234451,-354.71493022,0.00016438,2]
[362084259,1747984234462,-430.0,0.00016438,2]
[362084260,1747984234472,-430.0,0.00016438,2]
[362084261,1747984234482,-430.0,0.00016438,2]
[362084262,1747984234492,-455.01552971,0.00016438,2]
[362084276,1747984238274,-300.0,0.00016437,2]
[362084277,1747984238285,-14.98447029,0.00016438,2]
[362084278,1747984238296,-363.16851241,0.00016438,2]
[362084279,1747984238307,-268.38649158,0.00016438,2]
[362084280,1747984238319,-368.38376565,0.00016438,2]
[362084281,1747984238328,-430.0,0.00016438,2]
[362084282,1747984238338,-430.0,0.00016438,2]
[362084283,1747984238348,-430.0,0.00016438,2]
[362084284,1747984238359,-430.0,0.00016438,2]
[362084285,1747984238369,-362.33351198,0.00016438,2]
[362084286,1747984238379,-430.0,0.00016438,2]
[362084287,1747984238389,-430.0,0.00016438,2]
[362084288,1747984238399,-430.0,0.00016438,2]
[362084289,1747984238408,-430.0,0.00016438,2]
[362084290,1747984238418,-361.61042121,0.00016438,2]
[362084291,1747984238427,-430.0,0.00016438,2]
[362084292,1747984238436,-461.3527492,0.00016438,2]
[362084293,1747984238446,-430.0,0.00016438,2]
[362084294,1747984238455,-430.0,0.00016438,2]
[362084295,1747984238464,-430.0,0.00016438,2]
[362084297,1747984238474,-360.63266077,0.00016438,2]
[362084298,1747984238483,-358.14043723,0.00016438,2]
[362084299,1747984238492,-430.0,0.00016438,2]
[362084300,1747984238501,-164.83445518,0.00016438,2]
[362084301,1747984238511,-459.47223641,0.00016438,2]
[362084302,1747984238525,-324.07693964,0.00016438,2]